[Event "Early-Titled-Tuesday-Blitz-February-20-2024"]
[Site "Chess.com"]
[Date "2024.02.20"]
[Round "8"]
[White "stratacticos"]
[Black "lasRojas"]
[Result "0-1"]
[WhiteElo "1990"]
[BlackElo "2283"]
[TimeControl "180+1"]
[EndTime "9:30:46 PST"]
[Termination "lasRojas won on time"]

1. e4 {[%clk 0:03:00.3]} 1... c5 {[%clk 0:02:51.7]} 2. b4 {[%clk 0:02:54.9]}
2... d5 {[%clk 0:02:49.1]} 3. exd5 {[%clk 0:02:50.6]} 3... Qxd5 {[%clk 0:02:50]}
4. Nf3 {[%clk 0:02:50.2]} 4... e5 {[%clk 0:02:47.6]} 5. c4 {[%clk 0:02:48.3]}
5... Qe6 {[%clk 0:02:41.7]} 6. Be2 {[%clk 0:02:30.1]} 6... Nc6 {[%clk
0:02:40.9]} 7. b5 {[%clk 0:02:28.3]} 7... Nd4 {[%clk 0:02:39.8]} 8. Nxd4 {[%clk
0:02:25.2]} 8... exd4 {[%clk 0:02:39.7]} 9. O-O {[%clk 0:02:24.4]} 9... Bd6
{[%clk 0:02:37.8]} 10. Re1 {[%clk 0:02:04.5]} 10... Ne7 {[%clk 0:02:35.3]} 11.
Bf3 {[%clk 0:01:57]} 11... Qxc4 {[%clk 0:02:30.4]} 12. Na3 {[%clk 0:01:56.2]}
12... Qb4 {[%clk 0:02:18.9]} 13. Rb1 {[%clk 0:01:49.9]} 13... Qa5 {[%clk
0:02:18.4]} 14. Nc4 {[%clk 0:01:49.3]} 14... Qc7 {[%clk 0:02:17]} 15. Nxd6+
{[%clk 0:01:22.1]} 15... Qxd6 {[%clk 0:02:15.4]} 16. Qe2 {[%clk 0:01:19.9]}
16... Be6 {[%clk 0:02:08.3]} 17. Bxb7 {[%clk 0:01:17.7]} 17... Rb8 {[%clk
0:02:05.2]} 18. Bf3 {[%clk 0:01:01.5]} 18... O-O {[%clk 0:02:03]} 19. d3 {[%clk
0:01:01]} 19... Nd5 {[%clk 0:01:57.3]} 20. Bxd5 {[%clk 0:00:56]} 20... Bxd5
{[%clk 0:01:57.3]} 21. a4 {[%clk 0:00:50.1]} 21... h6 {[%clk 0:01:52]} 22. Qg4
{[%clk 0:00:38]} 22... Rfe8 {[%clk 0:01:48.1]} 23. Bf4 {[%clk 0:00:36]} 23...
Qb6 {[%clk 0:00:45.4]} 24. Bxb8 {[%clk 0:00:32.7]} 24... Qxb8 {[%clk 0:00:46.3]}
25. a5 {[%clk 0:00:27.7]} 25... Qxb5 {[%clk 0:00:38.8]} 26. h4 {[%clk
0:00:17.3]} 26... Rxe1+ {[%clk 0:00:36.8]} 27. Rxe1 {[%clk 0:00:16.6]} 27... Be6
{[%clk 0:00:37.4]} 28. Rxe6 {[%clk 0:00:14.7]} 28... fxe6 {[%clk 0:00:37]} 29.
Qxe6+ {[%clk 0:00:14.6]} 29... Kh8 {[%clk 0:00:37.3]} 30. Qc8+ {[%clk
0:00:13.1]} 30... Kh7 {[%clk 0:00:37.4]} 31. Qf5+ {[%clk 0:00:12.5]} 31... Kg8
{[%clk 0:00:37.1]} 32. Qe6+ {[%clk 0:00:09.5]} 32... Kf8 {[%clk 0:00:36.8]} 33.
Qc8+ {[%clk 0:00:08.6]} 33... Kf7 {[%clk 0:00:37]} 34. Qc7+ {[%clk 0:00:08.1]}
34... Kg6 {[%clk 0:00:35.9]} 35. Qd6+ {[%clk 0:00:07.7]} 35... Kh7 {[%clk
0:00:34]} 36. h5 {[%clk 0:00:07.6]} 36... Qxd3 {[%clk 0:00:29.8]} 37. Qxc5
{[%clk 0:00:04.9]} 37... Qe4 {[%clk 0:00:18.5]} 38. a6 {[%clk 0:00:03.7]} 38...
d3 {[%clk 0:00:18.2]} 39. Qxa7 {[%clk 0:00:03.3]} 39... d2 {[%clk 0:00:18.5]}
40. Qd7 {[%clk 0:00:03.5]} 40... Qb1+ {[%clk 0:00:15.6]} 41. Kh2 {[%clk
0:00:03]} 41... d1=Q {[%clk 0:00:16.5]} 42. Qf5+ {[%clk 0:00:02.3]} 42... Qxf5
{[%clk 0:00:16.5]} 0-1

[Event "Early-Titled-Tuesday-Blitz-February-20-2024"]
[Site "Chess.com"]
[Date "2024.02.20"]
[Round "8"]
[White "Sam_ChessMood"]
[Black "rquery98"]
[Result "1-0"]
[WhiteElo "2944"]
[BlackElo "2775"]
[TimeControl "180+1"]
[EndTime "9:30:49 PST"]
[Termination "Sam_ChessMood won by resignation"]

1. d4 {[%clk 0:02:59.8]} 1... Nf6 {[%clk 0:02:59.8]} 2. c4 {[%clk 0:03:00.1]}
2... g6 {[%clk 0:03:00.1]} 3. Nc3 {[%clk 0:02:59.4]} 3... Bg7 {[%clk 0:03:00.6]}
4. e4 {[%clk 0:02:59.8]} 4... d6 {[%clk 0:03:01.3]} 5. Be2 {[%clk 0:03:00]} 5...
O-O {[%clk 0:03:01.5]} 6. Be3 {[%clk 0:03:00.3]} 6... c5 {[%clk 0:02:51.5]} 7.
d5 {[%clk 0:03:00]} 7... e6 {[%clk 0:02:51.5]} 8. Nf3 {[%clk 0:02:59.3]} 8...
exd5 {[%clk 0:02:51.6]} 9. cxd5 {[%clk 0:02:58.2]} 9... Bg4 {[%clk 0:02:48.8]}
10. Nd2 {[%clk 0:02:57.8]} 10... Bxe2 {[%clk 0:02:47.2]} 11. Qxe2 {[%clk
0:02:58.7]} 11... Re8 {[%clk 0:02:36.5]} 12. O-O {[%clk 0:02:58.5]} 12... Na6
{[%clk 0:02:33.9]} 13. a3 {[%clk 0:02:47.8]} 13... Nc7 {[%clk 0:02:27.5]} 14. a4
{[%clk 0:02:29.6]} 14... Rb8 {[%clk 0:02:09.1]} 15. Kh1 {[%clk 0:02:24.9]} 15...
a6 {[%clk 0:02:05.2]} 16. a5 {[%clk 0:02:21.4]} 16... Qd7 {[%clk 0:02:05.8]} 17.
f3 {[%clk 0:02:17.2]} 17... Nb5 {[%clk 0:02:05.3]} 18. Nc4 {[%clk 0:02:14.9]}
18... Nh5 {[%clk 0:01:35.6]} 19. Qd3 {[%clk 0:02:07.7]} 19... f5 {[%clk
0:01:06.2]} 20. Rae1 {[%clk 0:01:49.3]} 20... f4 {[%clk 0:00:50.5]} 21. Bf2
{[%clk 0:01:49.5]} 21... Be5 {[%clk 0:00:44.3]} 22. Nxe5 {[%clk 0:01:34.1]}
22... Rxe5 {[%clk 0:00:45.2]} 23. Nb1 {[%clk 0:01:22.1]} 23... Nf6 {[%clk
0:00:27.2]} 24. Nd2 {[%clk 0:01:21.4]} 24... Qe7 {[%clk 0:00:27.6]} 25. Nc4
{[%clk 0:01:15.7]} 25... Nd7 {[%clk 0:00:27.7]} 26. Qd2 {[%clk 0:01:07.5]} 26...
Rf8 {[%clk 0:00:23]} 27. b4 {[%clk 0:01:04.2]} 27... cxb4 {[%clk 0:00:19.5]} 28.
Qxb4 {[%clk 0:01:03.9]} 28... Rh5 {[%clk 0:00:19.9]} 29. Re2 {[%clk 0:00:47.5]}
29... Ne5 {[%clk 0:00:16.7]} 30. Nxe5 {[%clk 0:00:41.6]} 30... Qxe5 {[%clk
0:00:17.6]} 31. Rc1 {[%clk 0:00:39]} 31... Qg5 {[%clk 0:00:15.2]} 32. Rec2
{[%clk 0:00:34.7]} 32... Qh6 {[%clk 0:00:14.8]} 33. Bg1 {[%clk 0:00:34.9]} 33...
Re5 {[%clk 0:00:11.5]} 34. Rc8 {[%clk 0:00:34]} 34... Ree8 {[%clk 0:00:08.7]}
35. Rxe8 {[%clk 0:00:33.7]} 35... Rxe8 {[%clk 0:00:09.6]} 36. h3 {[%clk
0:00:31.1]} 36... Qg5 {[%clk 0:00:09.1]} 37. Bd4 {[%clk 0:00:20]} 37... Qe7
{[%clk 0:00:08.6]} 38. Ba1 {[%clk 0:00:19.8]} 38... Qf8 {[%clk 0:00:03.2]} 39.
Qb2 {[%clk 0:00:18.4]} 39... Kf7 {[%clk 0:00:01.5]} 40. Qf6+ {[%clk 0:00:17.4]}
40... Kg8 {[%clk 0:00:02.1]} 41. Qh8+ {[%clk 0:00:17.8]} 41... Kf7 {[%clk
0:00:03]} 42. Qxh7+ {[%clk 0:00:18.4]} 1-0

[Event "Early-Titled-Tuesday-Blitz-February-20-2024"]
[Site "Chess.com"]
[Date "2024.02.20"]
[Round "8"]
[White "Lady_Nika"]
[Black "Atousa"]
[Result "1-0"]
[WhiteElo "2564"]
[BlackElo "2441"]
[TimeControl "180+1"]
[EndTime "9:30:50 PST"]
[Termination "Lady_Nika won by resignation"]

1. d4 {[%clk 0:03:00.9]} 1... Nf6 {[%clk 0:02:57.1]} 2. e3 {[%clk 0:03:01.8]}
2... d5 {[%clk 0:02:53.1]} 3. f4 {[%clk 0:03:02.7]} 3... Bf5 {[%clk 0:02:51.8]}
4. Nf3 {[%clk 0:03:03.6]} 4... c5 {[%clk 0:02:51]} 5. c3 {[%clk 0:03:03.5]} 5...
e6 {[%clk 0:02:51.3]} 6. Bd3 {[%clk 0:03:03.6]} 6... Nc6 {[%clk 0:02:48.2]} 7.
O-O {[%clk 0:02:57]} 7... Be7 {[%clk 0:02:45.9]} 8. Qe2 {[%clk 0:02:56.5]} 8...
O-O {[%clk 0:02:43.6]} 9. Nbd2 {[%clk 0:02:56.3]} 9... a6 {[%clk 0:02:38.5]} 10.
Ne5 {[%clk 0:02:56.3]} 10... Rc8 {[%clk 0:02:33.6]} 11. Rf3 {[%clk 0:02:50.3]}
11... Ne4 {[%clk 0:01:56.5]} 12. h3 {[%clk 0:02:42.5]} 12... f6 {[%clk
0:01:48.3]} 13. Nxc6 {[%clk 0:02:38]} 13... Rxc6 {[%clk 0:01:49.2]} 14. g4
{[%clk 0:02:38.1]} 14... Bg6 {[%clk 0:01:46.4]} 15. h4 {[%clk 0:02:03.6]} 15...
Nxd2 {[%clk 0:01:44.5]} 16. Bxd2 {[%clk 0:02:02.4]} 16... Bxd3 {[%clk
0:01:44.2]} 17. Qxd3 {[%clk 0:02:03.3]} 17... Qe8 {[%clk 0:01:39.9]} 18. f5
{[%clk 0:01:59]} 18... c4 {[%clk 0:01:27.8]} 19. Qf1 {[%clk 0:01:55.7]} 19...
Bd6 {[%clk 0:01:26.2]} 20. Qg2 {[%clk 0:01:54]} 20... Bb8 {[%clk 0:01:22.3]} 21.
fxe6 {[%clk 0:01:50.8]} 21... Qxe6 {[%clk 0:01:19.9]} 22. Rf5 {[%clk 0:01:50.9]}
22... Rd8 {[%clk 0:01:17]} 23. Raf1 {[%clk 0:01:50.4]} 23... Rc7 {[%clk
0:01:06.2]} 24. b3 {[%clk 0:01:32.6]} 24... b5 {[%clk 0:01:00.6]} 25. h5 {[%clk
0:01:31.7]} 25... h6 {[%clk 0:00:54]} 26. R1f3 {[%clk 0:01:15.7]} 26... Re7
{[%clk 0:00:53.7]} 27. Be1 {[%clk 0:01:14.7]} 27... Qe4 {[%clk 0:00:50.7]} 28.
Bh4 {[%clk 0:00:53.7]} 28... cxb3 {[%clk 0:00:36.2]} 29. axb3 {[%clk 0:00:53.4]}
29... a5 {[%clk 0:00:35.7]} 30. c4 {[%clk 0:00:26.6]} 30... bxc4 {[%clk
0:00:29.3]} 31. bxc4 {[%clk 0:00:26.7]} 31... dxc4 {[%clk 0:00:29.9]} 32. Bxf6
{[%clk 0:00:27]} 32... gxf6 {[%clk 0:00:27.4]} 33. Rxf6 {[%clk 0:00:27.2]} 33...
Rg7 {[%clk 0:00:27.4]} 34. Rf8+ {[%clk 0:00:20.5]} 34... Kh7 {[%clk 0:00:27.6]}
35. Rxd8 {[%clk 0:00:19.1]} 35... Qxg4 {[%clk 0:00:10.7]} 36. Qxg4 {[%clk
0:00:18.7]} 36... Rxg4+ {[%clk 0:00:11.6]} 37. Kf2 {[%clk 0:00:19.1]} 37... Bc7
{[%clk 0:00:10.4]} 38. Rd7+ {[%clk 0:00:19.2]} 38... Rg7 {[%clk 0:00:10.6]} 39.
Rff7 {[%clk 0:00:19.4]} 39... Bg3+ {[%clk 0:00:07]} 40. Kf3 {[%clk 0:00:18.7]}
40... Rxf7+ {[%clk 0:00:07.9]} 41. Rxf7+ {[%clk 0:00:18.9]} 41... Kg8 {[%clk
0:00:08.8]} 42. Ra7 {[%clk 0:00:17.3]} 42... c3 {[%clk 0:00:08.5]} 43. Rxa5
{[%clk 0:00:17]} 43... c2 {[%clk 0:00:09.4]} 44. Rc5 {[%clk 0:00:16.7]} 44...
Bh4 {[%clk 0:00:10.1]} 45. Rxc2 {[%clk 0:00:16.3]} 45... Bg5 {[%clk 0:00:11]}
46. Rg2 {[%clk 0:00:16.2]} 46... Kf7 {[%clk 0:00:11.9]} 47. Rxg5 {[%clk
0:00:16.5]} 47... hxg5 {[%clk 0:00:12.8]} 48. Kg4 {[%clk 0:00:17.1]} 48... Kf6
{[%clk 0:00:13.7]} 49. e4 {[%clk 0:00:17.4]} 49... Ke6 {[%clk 0:00:14.4]} 50.
Kxg5 {[%clk 0:00:17.5]} 1-0

[Event "Early-Titled-Tuesday-Blitz-February-20-2024"]
[Site "Chess.com"]
[Date "2024.02.20"]
[Round "8"]
[White "pedro_nascimento85"]
[Black "arnash_bauyrzhan"]
[Result "0-1"]
[WhiteElo "2119"]
[BlackElo "2261"]
[TimeControl "180+1"]
[EndTime "9:30:51 PST"]
[Termination "arnash_bauyrzhan won by resignation"]

1. d4 {[%clk 0:03:00.9]} 1... d5 {[%clk 0:02:59.9]} 2. c4 {[%clk 0:03:00.5]}
2... e6 {[%clk 0:03:00.3]} 3. Nc3 {[%clk 0:02:59]} 3... Be7 {[%clk 0:03:00.6]}
4. cxd5 {[%clk 0:02:55.8]} 4... exd5 {[%clk 0:03:01.5]} 5. Bf4 {[%clk
0:02:55.4]} 5... c6 {[%clk 0:03:01.5]} 6. Qc2 {[%clk 0:02:54.7]} 6... g6 {[%clk
0:02:59.3]} 7. e3 {[%clk 0:02:51]} 7... Bf5 {[%clk 0:02:59.2]} 8. Bd3 {[%clk
0:02:50.6]} 8... Bxd3 {[%clk 0:02:58.8]} 9. Qxd3 {[%clk 0:02:50.6]} 9... Bd6
{[%clk 0:02:56.6]} 10. Nge2 {[%clk 0:02:40.5]} 10... Bxf4 {[%clk 0:02:56]} 11.
Nxf4 {[%clk 0:02:40.1]} 11... Ne7 {[%clk 0:02:55.7]} 12. O-O {[%clk 0:02:39.8]}
12... O-O {[%clk 0:02:55.5]} 13. b4 {[%clk 0:02:19.8]} 13... Qd6 {[%clk
0:02:55.3]} 14. Rab1 {[%clk 0:02:18.4]} 14... Nd7 {[%clk 0:02:54.1]} 15. b5
{[%clk 0:02:17.8]} 15... Nb6 {[%clk 0:02:37.5]} 16. bxc6 {[%clk 0:02:14.9]}
16... bxc6 {[%clk 0:02:37.8]} 17. a4 {[%clk 0:02:13.9]} 17... Nc4 {[%clk
0:02:36.9]} 18. Nfe2 {[%clk 0:01:39.5]} 18... a5 {[%clk 0:02:27.9]} 19. e4
{[%clk 0:01:38.6]} 19... Rab8 {[%clk 0:02:13.3]} 20. e5 {[%clk 0:01:18.4]} 20...
Qe6 {[%clk 0:01:56.5]} 21. h3 {[%clk 0:01:14]} 21... Qf5 {[%clk 0:01:52.6]} 22.
Qxf5 {[%clk 0:01:01.8]} 22... Nxf5 {[%clk 0:01:52.7]} 23. Rfd1 {[%clk
0:01:02.2]} 23... Rb4 {[%clk 0:01:44.9]} 24. Rxb4 {[%clk 0:00:55.8]} 24... axb4
{[%clk 0:01:45.8]} 25. Na2 {[%clk 0:00:54.8]} 25... b3 {[%clk 0:01:40.6]} 26.
Nac3 {[%clk 0:00:53.1]} 26... b2 {[%clk 0:01:37.4]} 27. Rb1 {[%clk 0:00:51.8]}
27... Rb8 {[%clk 0:01:36.8]} 28. Nd1 {[%clk 0:00:50.9]} 28... Ra8 {[%clk
0:01:08.8]} 29. Ndc3 {[%clk 0:00:44.1]} 29... c5 {[%clk 0:00:33.7]} 30. Nxd5
{[%clk 0:00:34]} 30... cxd4 {[%clk 0:00:32.4]} 31. g4 {[%clk 0:00:30.8]} 31...
d3 {[%clk 0:00:27.8]} 32. Nec3 {[%clk 0:00:27.4]} 32... Nd4 {[%clk 0:00:27.6]}
33. Nf4 {[%clk 0:00:16.4]} 33... d2 {[%clk 0:00:20.2]} 34. Kf1 {[%clk
0:00:13.1]} 34... g5 {[%clk 0:00:18.8]} 35. Nfe2 {[%clk 0:00:13.2]} 35... Nb3
{[%clk 0:00:14.8]} 36. Nd4 {[%clk 0:00:08]} 36... Nxd4 {[%clk 0:00:13.9]} 37. f4
{[%clk 0:00:07.2]} 37... gxf4 {[%clk 0:00:13.4]} 38. Kf2 {[%clk 0:00:07.5]}
38... Rb8 {[%clk 0:00:09.3]} 39. h4 {[%clk 0:00:04.1]} 39... Na3 {[%clk
0:00:09.4]} 40. Rxb2 {[%clk 0:00:04.3]} 40... Rxb2 {[%clk 0:00:09.1]} 0-1

[Event "Early-Titled-Tuesday-Blitz-February-20-2024"]
[Site "Chess.com"]
[Date "2024.02.20"]
[Round "8"]
[White "HelvertHernandez"]
[Black "Dewarfd"]
[Result "0-1"]
[WhiteElo "1974"]
[BlackElo "2147"]
[TimeControl "180+1"]
[EndTime "9:30:54 PST"]
[Termination "Dewarfd won by resignation"]

1. e4 {[%clk 0:03:00.9]} 1... c5 {[%clk 0:02:58.6]} 2. Nf3 {[%clk 0:02:59.9]}
2... g6 {[%clk 0:02:58.6]} 3. d4 {[%clk 0:02:59.3]} 3... cxd4 {[%clk 0:02:59.5]}
4. Nxd4 {[%clk 0:02:59.1]} 4... Nc6 {[%clk 0:02:59.7]} 5. Be3 {[%clk 0:02:58.7]}
5... Nf6 {[%clk 0:02:49.5]} 6. f3 {[%clk 0:02:52.9]} 6... Bg7 {[%clk 0:02:49.1]}
7. Qd2 {[%clk 0:02:51.9]} 7... O-O {[%clk 0:02:43.4]} 8. Bc4 {[%clk 0:02:50.3]}
8... Qb6 {[%clk 0:02:38.2]} 9. Nb3 {[%clk 0:02:37.1]} 9... Qb4 {[%clk
0:02:31.7]} 10. Qxb4 {[%clk 0:02:30.4]} 10... Nxb4 {[%clk 0:02:31.7]} 11. Na3
{[%clk 0:02:29.1]} 11... Nxe4 {[%clk 0:01:58.7]} 12. c3 {[%clk 0:02:18]} 12...
Nxc3 {[%clk 0:01:57.3]} 13. O-O {[%clk 0:02:14.1]} 13... Na4 {[%clk 0:01:48.7]}
14. Bd4 {[%clk 0:02:06.7]} 14... d5 {[%clk 0:01:36.4]} 15. Bxg7 {[%clk
0:02:02.5]} 15... Kxg7 {[%clk 0:01:35.9]} 16. Bb5 {[%clk 0:01:57.8]} 16... Nxb2
{[%clk 0:01:27.6]} 17. Rab1 {[%clk 0:01:46.8]} 17... N2d3 {[%clk 0:01:11.7]} 18.
Nc1 {[%clk 0:01:38.6]} 18... Nxc1 {[%clk 0:01:05.5]} 19. Rfxc1 {[%clk
0:01:36.1]} 19... a5 {[%clk 0:00:53.7]} 20. Rc7 {[%clk 0:01:29.9]} 20... Bf5
{[%clk 0:00:46.4]} 21. Rd1 {[%clk 0:01:20.6]} 21... Nxa2 {[%clk 0:00:34.1]} 22.
Rd2 {[%clk 0:01:12.3]} 22... Nb4 {[%clk 0:00:28.9]} 23. Rxb7 {[%clk 0:01:10.9]}
23... Rab8 {[%clk 0:00:26.6]} 24. Rxe7 {[%clk 0:01:08.7]} 24... Nc2 {[%clk
0:00:20.2]} 25. Nxc2 {[%clk 0:01:03.6]} 25... Bxc2 {[%clk 0:00:20.4]} 26. Rxc2
{[%clk 0:01:02.7]} 26... Rxb5 {[%clk 0:00:20.5]} 27. Rd2 {[%clk 0:01:02.9]}
27... Ra8 {[%clk 0:00:16.2]} 28. Rd7 {[%clk 0:01:02.5]} 28... a4 {[%clk
0:00:16.1]} 29. R7xd5 {[%clk 0:01:02.2]} 29... Rxd5 {[%clk 0:00:16.4]} 30. Rxd5
{[%clk 0:01:02.2]} 30... a3 {[%clk 0:00:16.7]} 31. Rd1 {[%clk 0:01:02]} 31... a2
{[%clk 0:00:16.9]} 32. Ra1 {[%clk 0:01:02.1]} 32... Kf6 {[%clk 0:00:17]} 33. Kf2
{[%clk 0:01:02.7]} 33... Ke5 {[%clk 0:00:17.3]} 34. g3 {[%clk 0:01:03.6]} 34...
Kd4 {[%clk 0:00:17.2]} 35. Ke2 {[%clk 0:01:03.2]} 35... Kc3 {[%clk 0:00:17.4]}
36. f4 {[%clk 0:00:58.9]} 36... Kb2 {[%clk 0:00:17.2]} 37. Rd1 {[%clk
0:00:58.7]} 37... Re8+ {[%clk 0:00:14.4]} 38. Kf3 {[%clk 0:00:56.6]} 38... Rc8
{[%clk 0:00:12.9]} 39. Kg4 {[%clk 0:00:56]} 39... Rc1 {[%clk 0:00:12.2]} 40.
Rd2+ {[%clk 0:00:56.3]} 40... Kb3 {[%clk 0:00:10.8]} 41. Rxa2 {[%clk 0:00:55]}
41... Kxa2 {[%clk 0:00:11.7]} 42. Kg5 {[%clk 0:00:55.4]} 42... Rh1 {[%clk
0:00:09.5]} 43. h4 {[%clk 0:00:53.8]} 43... Rh3 {[%clk 0:00:08.5]} 44. g4 {[%clk
0:00:53.7]} 44... Kb3 {[%clk 0:00:07.1]} 45. f5 {[%clk 0:00:53.1]} 45... Kc4
{[%clk 0:00:06.8]} 46. fxg6 {[%clk 0:00:52.3]} 46... fxg6 {[%clk 0:00:06.3]} 47.
h5 {[%clk 0:00:51.9]} 47... gxh5 {[%clk 0:00:05.1]} 48. gxh5 {[%clk 0:00:52]}
48... Kd5 {[%clk 0:00:04.8]} 49. Kh6 {[%clk 0:00:49.2]} 49... Ke6 {[%clk
0:00:04.6]} 50. Kxh7 {[%clk 0:00:49.2]} 50... Rxh5+ {[%clk 0:00:04.6]} 51. Kg6
{[%clk 0:00:49.4]} 51... Rf5 {[%clk 0:00:04.6]} 52. Kg7 {[%clk 0:00:48.9]} 52...
Rf6 {[%clk 0:00:04.4]} 53. Kg8 {[%clk 0:00:49]} 53... Rf7 {[%clk 0:00:04.2]} 54.
Kh8 {[%clk 0:00:48.6]} 54... Kf6 {[%clk 0:00:04]} 55. Kg8 {[%clk 0:00:48.8]}
55... Kg6 {[%clk 0:00:04.1]} 0-1

[Event "Early-Titled-Tuesday-Blitz-February-20-2024"]
[Site "Chess.com"]
[Date "2024.02.20"]
[Round "8"]
[White "Jumbo"]
[Black "Ordekalog"]
[Result "1-0"]
[WhiteElo "2830"]
[BlackElo "2623"]
[TimeControl "180+1"]
[EndTime "9:30:57 PST"]
[Termination "Jumbo won on time"]

1. e4 {[%clk 0:03:00.9]} 1... c5 {[%clk 0:02:28.6]} 2. Nf3 {[%clk 0:02:58.3]}
2... e6 {[%clk 0:02:28.8]} 3. c3 {[%clk 0:02:55.9]} 3... Nc6 {[%clk 0:02:28.1]}
4. d4 {[%clk 0:02:55.3]} 4... cxd4 {[%clk 0:02:28]} 5. cxd4 {[%clk 0:02:55.1]}
5... d6 {[%clk 0:02:28]} 6. Nc3 {[%clk 0:02:54.7]} 6... Nf6 {[%clk 0:02:27.7]}
7. Bd3 {[%clk 0:02:35.8]} 7... Be7 {[%clk 0:02:27.2]} 8. O-O {[%clk 0:02:35.6]}
8... O-O {[%clk 0:02:25.5]} 9. a3 {[%clk 0:02:35.5]} 9... e5 {[%clk 0:02:20.8]}
10. d5 {[%clk 0:02:35.4]} 10... Nb8 {[%clk 0:02:20.8]} 11. h3 {[%clk 0:02:26.4]}
11... Nbd7 {[%clk 0:02:19.3]} 12. Be3 {[%clk 0:02:26.9]} 12... a6 {[%clk
0:02:14.5]} 13. b4 {[%clk 0:02:23.4]} 13... b5 {[%clk 0:02:11.5]} 14. a4 {[%clk
0:02:23.6]} 14... bxa4 {[%clk 0:02:11]} 15. Nxa4 {[%clk 0:02:13.2]} 15... Rb8
{[%clk 0:02:09.9]} 16. Rb1 {[%clk 0:02:08.9]} 16... g6 {[%clk 0:01:59.2]} 17.
Nd2 {[%clk 0:02:08.6]} 17... Nh5 {[%clk 0:01:57.1]} 18. Nc4 {[%clk 0:02:03.7]}
18... Ndf6 {[%clk 0:01:46.6]} 19. Na5 {[%clk 0:02:01.4]} 19... Rxb4 {[%clk
0:01:39.5]} 20. Rxb4 {[%clk 0:01:54.1]} 20... Qxa5 {[%clk 0:01:39.5]} 21. Qb3
{[%clk 0:01:54.7]} 21... Qd8 {[%clk 0:01:30.5]} 22. Nb6 {[%clk 0:01:48.8]} 22...
Nf4 {[%clk 0:01:23.2]} 23. Rc1 {[%clk 0:01:47.5]} 23... Bb7 {[%clk 0:01:15.3]}
24. Bf1 {[%clk 0:01:47]} 24... N6h5 {[%clk 0:01:06.1]} 25. g3 {[%clk 0:01:45.7]}
25... a5 {[%clk 0:00:37.4]} 26. Ra4 {[%clk 0:01:38.9]} 26... f5 {[%clk
0:00:30.7]} 27. gxf4 {[%clk 0:01:30.8]} 27... exf4 {[%clk 0:00:30.5]} 28. Bd2
{[%clk 0:01:31.3]} 28... Bh4 {[%clk 0:00:27]} 29. exf5 {[%clk 0:01:10.4]} 29...
Rxf5 {[%clk 0:00:25.4]} 30. Bg2 {[%clk 0:01:09.6]} 30... f3 {[%clk 0:00:23.7]}
31. Bxf3 {[%clk 0:01:06]} 31... Bg5 {[%clk 0:00:20.5]} 32. Bxh5 {[%clk
0:00:16.6]} 32... Bxd2 {[%clk 0:00:20.4]} 33. Bg4 {[%clk 0:00:17.2]} 33... Rg5
{[%clk 0:00:18.7]} 34. Rd1 {[%clk 0:00:16.5]} 34... Bb4 {[%clk 0:00:17.9]} 35.
Rxb4 {[%clk 0:00:14]} 35... axb4 {[%clk 0:00:18.8]} 36. Qe3 {[%clk 0:00:09.6]}
36... h5 {[%clk 0:00:16.7]} 37. f4 {[%clk 0:00:10]} 37... hxg4 {[%clk
0:00:03.9]} 38. fxg5 {[%clk 0:00:09.4]} 38... b3 {[%clk 0:00:03.7]} 39. Re1
{[%clk 0:00:08]} 39... b2 {[%clk 0:00:03.1]} 40. hxg4 {[%clk 0:00:07]} 40... Qf8
{[%clk 0:00:01.4]} 41. Qe6+ {[%clk 0:00:06.1]} 41... Kg7 {[%clk 0:00:01.3]} 42.
Qf6+ {[%clk 0:00:06.7]} 42... Qxf6 {[%clk 0:00:01.4]} 43. gxf6+ {[%clk
0:00:07.6]} 43... Kxf6 {[%clk 0:00:02.3]} 44. Rb1 {[%clk 0:00:08.1]} 1-0

[Event "Early-Titled-Tuesday-Blitz-February-20-2024"]
[Site "Chess.com"]
[Date "2024.02.20"]
[Round "8"]
[White "SahibSinghKnight"]
[Black "ansko1999"]
[Result "0-1"]
[WhiteElo "2572"]
[BlackElo "2699"]
[TimeControl "180+1"]
[EndTime "9:31:01 PST"]
[Termination "ansko1999 won by resignation"]

1. e4 {[%clk 0:03:00.9]} 1... d6 {[%clk 0:02:59.5]} 2. d4 {[%clk 0:02:58]} 2...
g6 {[%clk 0:02:59.5]} 3. Be3 {[%clk 0:02:56.7]} 3... Bg7 {[%clk 0:02:52.1]} 4.
Nc3 {[%clk 0:02:48.1]} 4... a6 {[%clk 0:02:49.7]} 5. Qd2 {[%clk 0:02:43.3]} 5...
Nd7 {[%clk 0:02:44]} 6. O-O-O {[%clk 0:02:41.6]} 6... b5 {[%clk 0:02:43.5]} 7.
f4 {[%clk 0:02:36.5]} 7... Bb7 {[%clk 0:02:36.8]} 8. e5 {[%clk 0:02:30.3]} 8...
Nh6 {[%clk 0:02:32.9]} 9. Nf3 {[%clk 0:02:18.4]} 9... Nf5 {[%clk 0:02:11.7]} 10.
Bf2 {[%clk 0:02:16]} 10... c5 {[%clk 0:02:02.7]} 11. dxc5 {[%clk 0:01:53.5]}
11... dxe5 {[%clk 0:02:01.9]} 12. Bd3 {[%clk 0:01:41.3]} 12... Nd4 {[%clk
0:01:47]} 13. Be4 {[%clk 0:01:23.6]} 13... Nxf3 {[%clk 0:01:35.4]} 14. gxf3
{[%clk 0:01:19.2]} 14... Qc7 {[%clk 0:01:12.1]} 15. Nd5 {[%clk 0:01:07]} 15...
Bxd5 {[%clk 0:01:08]} 16. Qxd5 {[%clk 0:01:05.9]} 16... Rc8 {[%clk 0:01:02.5]}
17. c6 {[%clk 0:00:56.7]} 17... Nf6 {[%clk 0:00:59]} 18. Qxe5 {[%clk 0:00:30.1]}
18... Qxe5 {[%clk 0:00:58.2]} 19. fxe5 {[%clk 0:00:31]} 19... Nxe4 {[%clk
0:00:58.1]} 20. fxe4 {[%clk 0:00:30.2]} 20... Rxc6 {[%clk 0:00:57]} 21. Rd5
{[%clk 0:00:15.5]} 21... O-O {[%clk 0:00:53.5]} 22. Kb1 {[%clk 0:00:12]} 22...
Rfc8 {[%clk 0:00:49.8]} 23. c3 {[%clk 0:00:08.4]} 23... e6 {[%clk 0:00:48.1]}
24. Rd7 {[%clk 0:00:08.6]} 24... Bxe5 {[%clk 0:00:47.2]} 25. Rf1 {[%clk
0:00:08.4]} 25... R6c7 {[%clk 0:00:43.7]} 26. Rd2 {[%clk 0:00:05.5]} 26... Bf4
{[%clk 0:00:41.6]} 27. Re2 {[%clk 0:00:05.1]} 27... Rd7 {[%clk 0:00:37]} 28. Bd4
{[%clk 0:00:04.9]} 28... e5 {[%clk 0:00:34.8]} 29. Bb6 {[%clk 0:00:04.8]} 29...
Rc6 {[%clk 0:00:31.8]} 30. Bg1 {[%clk 0:00:04.4]} 30... Rcd6 {[%clk 0:00:31.5]}
31. Rfe1 {[%clk 0:00:02.5]} 31... Rd1+ {[%clk 0:00:25]} 32. Kc2 {[%clk
0:00:02.6]} 32... R7d2+ {[%clk 0:00:24.5]} 33. Rxd2 {[%clk 0:00:01.7]} 33...
Rxd2+ {[%clk 0:00:25.4]} 34. Kb3 {[%clk 0:00:01.7]} 34... Bxh2 {[%clk
0:00:22.7]} 35. Be3 {[%clk 0:00:02.4]} 35... Rg2 {[%clk 0:00:20.7]} 36. Bh6
{[%clk 0:00:02.1]} 36... Bf4 {[%clk 0:00:19.9]} 37. Bxf4 {[%clk 0:00:02.3]}
37... exf4 {[%clk 0:00:20.8]} 38. Rf1 {[%clk 0:00:03]} 38... g5 {[%clk
0:00:20.7]} 39. Ka3 {[%clk 0:00:02.8]} 39... h5 {[%clk 0:00:19.3]} 40. b3 {[%clk
0:00:03.3]} 40... h4 {[%clk 0:00:19.7]} 41. c4 {[%clk 0:00:04.2]} 41... bxc4
{[%clk 0:00:19.9]} 42. bxc4 {[%clk 0:00:05.1]} 42... h3 {[%clk 0:00:20.1]} 43.
Rc1 {[%clk 0:00:03.9]} 43... h2 {[%clk 0:00:19.9]} 44. Rh1 {[%clk 0:00:03.5]}
44... g4 {[%clk 0:00:20.1]} 45. c5 {[%clk 0:00:04.2]} 45... g3 {[%clk
0:00:20.4]} 46. Kb3 {[%clk 0:00:04.7]} 46... Rg1 {[%clk 0:00:20.3]} 47. c6
{[%clk 0:00:05.6]} 47... Rxh1 {[%clk 0:00:20.3]} 48. Kb2 {[%clk 0:00:04.9]}
48... Rb1+ {[%clk 0:00:13.5]} 0-1